{"text_format":"1","workbook":"xlsx","n_sheets":3,"sheets":["Instruccions","Reformulació Pressupost Bc","Resum Pressupost"],"not_rendered":{"charts":0,"images":4,"macros":1,"external_links":0,"defined_names":8,"comments":2,"pivot_tables":0},"unopened":[],"bounds":{"document_bytes":16777216,"sheet_cells":100000,"rows_first":2000,"rows_last":500,"rows_between":2000,"halvings":0,"cell_chars":16384,"cell_head_chars":4096},"cells_cut":0,"cells_raw":0,"read":"whole","date_system":"1900"}

{"sheet":"Instruccions","index":0,"n_rows":15,"n_cols":10,"rows_kept":15,"cut":false,"hidden":false,"merged":[[1,9,1,11],[4,2,4,17],[2,2,3,17],[14,1,15,15]]}
[]
[null,null,null,null,null,null,null,null,null,"Doc_basic3_pressup_reformulat_Bc INSTRUCCIONS"]
[null,null,"SUBVENCIONS DE L’AJUNTAMENT DE BARCELONA PER L’ENFORTIMENT DE L’ECONOMIA SOCIAL I SOLIDÀRIA I PER LA INTERCOOPERACIÓ EN L’ESTRATÈGIA #ESSBCN2030 - ENFORTIM L’ESS 2024"]
[]
[null,null,"Aspectes rellevants relacionats amb la reformulació"]
[]
[]
[]
[]
[null,"1. Emplenar la pestanya  \"Reformulació Pressupost\" amb les dades econòmiques del projecte:"]
[null,"1.1  Emplenar els quadres DADES BÀSIQUES-PREVISIÓ DE DESPESES DEL PROJECTE SUBVENCIONABLE INICIAL, amb les dades econòmiques de la proposta inicial amb subvenció atorgada."]
[null,"1.2  Emplenar els quadres DADES BÀSIQUES-PREVISIÓ DE DESPESES DEL PROJECTE REFORMULAT, amb les dades econòmiques de la proposta de reformulació."]
[null,"2. Revisar i emplenar la pestanya  \"Resum Pressupost\" amb les dades econòmiques del projecte:"]
[null,"3. Imprimir els fulls de les 2 pestanyes (Reformulació pressupost i Resum Pressupost). En format pdf."]
[null,"4. Si la sol·licitud es va presentar per via telemàtica, cal que registreu la documentació, telemàticament, com a tràmit específic, dins la convocatòria específica com annexió de documents addicionals i feu servir el número de tràmit que el sistema de registre us va donar en el moment de la presentació de la sol·licitud de la subvenció."]

{"sheet":"Reformulació Pressupost Bc","index":1,"n_rows":133,"n_cols":13,"rows_kept":133,"cut":false,"hidden":false,"merged":[[132,0,132,12],[126,0,126,12],[127,0,127,12],[128,0,128,12],[129,0,129,12],[130,0,130,12],[122,0,122,12],[123,0,123,12],[124,0,124,12],[125,0,125,12],[131,0,131,12],[117,0,117,12],[118,0,118,12],[119,0,119,12],[120,0,120,12],[121,0,121,12],[5,2,5,5],[17,5,17,8],[3,0,4,12],[1,1,1,12],[116,0,116,12],[17,10,17,12],[112,0,112,12],[113,0,113,12],[114,0,114,12],[115,0,115,12],[17,0,17,3]]}
[]
[null,"Reformulació pressupost Modalitat Bc"]
[]
["Programa de subvencions de l'Ajuntament de Barcelona per l'enfortiment de l'Economia Social i Solidària i per la intercooperació en l'Estratègia #ESSBCN2030 - ENFORTIM L’ESS 2024"]
[]
[]
["DADES BÀSIQUES"]
["Nom de la persona jurídica",null,{"$f":"+IF(H8>Dadesbasiques[[#This Row],[Columna1]],\"ALERTA: La quantia de la subvenció atorgada no pot superar el 80% de la despesa total del projecte a subvencionar\", \" \")","v":" "},null,null,"  "]
["NIF de la persona jurídica",null,{"$f":"+IF(H9>Dadesbasiques[[#This Row],[Columna1]],\"ALERTA: La quantia de la subvenció atorgada no pot superar el 80% de la despesa total del projecte a subvencionar\", \" \")","v":" "}]
["Nom del projecte subvencionable",null,{"$f":"+IF(G10>Dadesbasiques[[#This Row],[Columna1]],\"ALERTA: La quantia de la subvenció atorgada no pot superar el 80% de la despesa total del projecte a subvencionar\", \" \")","v":" "},null,null,"DADES BÀSIQUES PROJECTE REFORMULAT"]
["Import total del projecte subvencionable",null,null,null,null,"Import total del projecte REFORMULAT"]
["Import imputable a la subvenció municipal",null,null,null,null,"Import imputable a la subvenció ATORGADA"]
["Import de l'aportació / Cofinançament de l'organització",{"$f":"+B11-B12","v":0},null,null,null,"Import de l'aportació / Cofinançament de l'organització",{"$f":"G11-G12","v":0}]
["% de l'import sol·licitat respecte el total del projecte subvencionable (*)",{"$f":"B12/B11","v":{"$error":"#DIV/0!"}},null,null,null,"% de l'import sol·licitat respecte el total del projecte subvencionat",{"$f":"G12/G11","v":{"$error":"#DIV/0!"}},{"$f":"+IF(G14>Dadesbasiques[[#This Row],[Columna1]],\"*Aquest percentatge ha de ser igual o menor al percentatge subvencionat inicialment.\",\" \")","v":{"$error":"#DIV/0!"}}]
["Data inici del projecte subvencionat (dd/mm/aaaa)",null,{"$f":"+IF(H15>Dadesbasiques[[#This Row],[Columna1]],\"ALERTA: La quantia de la subvenció atorgada no pot superar el 80% de la despesa total del projecte a subvencionar\", \" \")","v":" "}]
["Data fi del projecte subvencionat (dd/mm/aaaa)",null,{"$f":"+IF(H16>Dadesbasiques[[#This Row],[Columna1]],\"ALERTA: La quantia de la subvenció atorgada no pot superar el 80% de la despesa total del projecte a subvencionar\", \" \")","v":" "}]
[]
["PREVISIÓ DE DESPESES DEL PROJECTE SUBVENCIONABLE INICIAL",null,null,null,null,"PREVISIÓ DE DESPESES DEL PROJECTE REFORMULAT",null,null,null,null,"DIFERÈNCIA REFORMULACIÓ I PROJECTE INICIAL"]
[]
["Partides","Import imputable a la subvenció municipal","Import de l'aportació / Cofinançament de l'organització","Import total del projecte",null,"Partides","Import imputable a la subvenció municipal","Import de l'aportació / Cofinançament de l'organització","Import total del projecte",null,"Import imputable a la subvenció municipal","Import de l'aportació / Cofinançament de l'organització","Import total del projecte"]
["D1. Retribucions i seguretat social (règim general o socis/es cooperativistes en règim d’autònoms) del personal propi vinculat al projecte (màxim 25% subvenció)",{"$f":"SUM(B22:B25)","v":0},{"$f":"SUM(C22:C25)","v":0},{"$f":"SUM(DespesesProjecte[[#This Row],[Import imputable a la subvenció municipal]],DespesesProjecte[[#This Row],[Import de l''aportació / Cofinançament de l''organització]])","v":0},null,"D1. Retribucions i seguretat social (règim general o socis/es cooperativistes en règim d’autònoms) del personal propi vinculat al projecte (màxim 25% subvenció)",{"$f":"SUM(G22:G25)","v":0},{"$f":"SUM(H22:H25)","v":0},{"$f":"+G21+H21","v":0},null,{"$f":"DespesesProjecte[[#This Row],[Import imputable a la subvenció municipal]]-G21","v":0},{"$f":"DespesesProjecte[[#This Row],[Import de l''aportació / Cofinançament de l''organització]]-H21","v":0},{"$f":"DespesesProjecte[[#This Row],[Import total del projecte]]-I21","v":0}]
[null,null,null,{"$f":"SUM(DespesesProjecte[[#This Row],[Import imputable a la subvenció municipal]],DespesesProjecte[[#This Row],[Import de l''aportació / Cofinançament de l''organització]])","v":0},null,null,null,null,{"$f":"+G22+H22","v":0},null,{"$f":"DespesesProjecte[[#This Row],[Import imputable a la subvenció municipal]]-G22","v":0},{"$f":"DespesesProjecte[[#This Row],[Import de l''aportació / Cofinançament de l''organització]]-H22","v":0},{"$f":"DespesesProjecte[[#This Row],[Import total del projecte]]-I22","v":0}]
[null,null,null,{"$f":"SUM(DespesesProjecte[[#This Row],[Import imputable a la subvenció municipal]],DespesesProjecte[[#This Row],[Import de l''aportació / Cofinançament de l''organització]])","v":0},null,null,null,null,0,null,{"$f":"DespesesProjecte[[#This Row],[Import imputable a la subvenció municipal]]-G23","v":0},{"$f":"DespesesProjecte[[#This Row],[Import de l''aportació / Cofinançament de l''organització]]-H23","v":0},{"$f":"DespesesProjecte[[#This Row],[Import total del projecte]]-I23","v":0}]
[null,null,null,{"$f":"SUM(DespesesProjecte[[#This Row],[Import imputable a la subvenció municipal]],DespesesProjecte[[#This Row],[Import de l''aportació / Cofinançament de l''organització]])","v":0},null,null,null,null,0,null,{"$f":"DespesesProjecte[[#This Row],[Import imputable a la subvenció municipal]]-G24","v":0},{"$f":"DespesesProjecte[[#This Row],[Import de l''aportació / Cofinançament de l''organització]]-H24","v":0},{"$f":"DespesesProjecte[[#This Row],[Import total del projecte]]-I24","v":0}]
[null,null,null,{"$f":"SUM(DespesesProjecte[[#This Row],[Import imputable a la subvenció municipal]],DespesesProjecte[[#This Row],[Import de l''aportació / Cofinançament de l''organització]])","v":0},null,null,null,null,0,null,{"$f":"DespesesProjecte[[#This Row],[Import imputable a la subvenció municipal]]-G25","v":0},{"$f":"DespesesProjecte[[#This Row],[Import de l''aportació / Cofinançament de l''organització]]-H25","v":0},{"$f":"DespesesProjecte[[#This Row],[Import total del projecte]]-I25","v":0}]
["TOTAL DE DESPESES DEL PERSONAL\nMàxim 25% de l'import imputable a la subvenció municipal si es tracta de personal propi assignat directament al projecte subvencionat",{"$f":"SUM(B21)","v":0},{"$f":"SUM(C21)","v":0},{"$f":"SUM(D21)","v":0},null,"TOTAL DE DESPESES DEL PERSONAL\nMàxim 25% de l'import imputable a la subvenció municipal si es tracta de personal propi assignat directament al projecte subvencionat",{"$f":"SUM(G21)","v":0},{"$f":"SUM(H21)","v":0},{"$f":"SUM(I21)","v":0},{"$f":"+IF(G26>G12*0.25,\"ALERTA: Màxim 25% de l'import imputable a la subvenció municipal\", \" \")","v":" "},{"$f":"DespesesProjecte[[#This Row],[Import imputable a la subvenció municipal]]-G26","v":0},{"$f":"DespesesProjecte[[#This Row],[Import de l''aportació / Cofinançament de l''organització]]-H26","v":0},{"$f":"DespesesProjecte[[#This Row],[Import total del projecte]]-I26","v":0}]
["D2. Treballs realitzats per professionals i empreses externes directament vinculades al projecte",{"$f":"SUM(B28:B30)","v":0},{"$f":"SUM(C28:C30)","v":0},{"$f":"SUM(DespesesProjecte[[#This Row],[Import imputable a la subvenció municipal]],DespesesProjecte[[#This Row],[Import de l''aportació / Cofinançament de l''organització]])","v":0},null,"D2. Treballs realitzats per professionals i empreses externes directament vinculades al projecte",{"$f":"SUM(G28:G30)","v":0},{"$f":"SUM(H28:H30)","v":0},{"$f":"+G27+H27","v":0},null,{"$f":"DespesesProjecte[[#This Row],[Import imputable a la subvenció municipal]]-G27","v":0},{"$f":"DespesesProjecte[[#This Row],[Import de l''aportació / Cofinançament de l''organització]]-H27","v":0},{"$f":"DespesesProjecte[[#This Row],[Import total del projecte]]-I27","v":0}]
[null,null,null,{"$f":"SUM(DespesesProjecte[[#This Row],[Import imputable a la subvenció municipal]],DespesesProjecte[[#This Row],[Import de l''aportació / Cofinançament de l''organització]])","v":0},null,null,null,null,{"$f":"+G28+H28","v":0},null,{"$f":"DespesesProjecte[[#This Row],[Import imputable a la subvenció municipal]]-G28","v":0},{"$f":"DespesesProjecte[[#This Row],[Import de l''aportació / Cofinançament de l''organització]]-H28","v":0},{"$f":"DespesesProjecte[[#This Row],[Import total del projecte]]-I28","v":0}]
[null,null,null,{"$f":"SUM(DespesesProjecte[[#This Row],[Import imputable a la subvenció municipal]],DespesesProjecte[[#This Row],[Import de l''aportació / Cofinançament de l''organització]])","v":0},null,null,null,null,0,null,{"$f":"DespesesProjecte[[#This Row],[Import imputable a la subvenció municipal]]-G29","v":0},{"$f":"DespesesProjecte[[#This Row],[Import de l''aportació / Cofinançament de l''organització]]-H29","v":0},{"$f":"DespesesProjecte[[#This Row],[Import total del projecte]]-I29","v":0}]
[null,null,null,{"$f":"SUM(DespesesProjecte[[#This Row],[Import imputable a la subvenció municipal]],DespesesProjecte[[#This Row],[Import de l''aportació / Cofinançament de l''organització]])","v":0},null,null,null,null,0,null,{"$f":"DespesesProjecte[[#This Row],[Import imputable a la subvenció municipal]]-G30","v":0},{"$f":"DespesesProjecte[[#This Row],[Import de l''aportació / Cofinançament de l''organització]]-H30","v":0},{"$f":"DespesesProjecte[[#This Row],[Import total del projecte]]-I30","v":0}]
["D3. Adquisició de materials i béns consumibles íntegrament imputables al projecte ",{"$f":"SUM(B32:B34)","v":0},{"$f":"SUM(C32:C34)","v":0},{"$f":"SUM(DespesesProjecte[[#This Row],[Import imputable a la subvenció municipal]],DespesesProjecte[[#This Row],[Import de l''aportació / Cofinançament de l''organització]])","v":0},null,"D3. Adquisició de materials i béns consumibles íntegrament imputables al projecte ",{"$f":"SUM(G32:G34)","v":0},{"$f":"SUM(H32:H34)","v":0},0,null,{"$f":"DespesesProjecte[[#This Row],[Import imputable a la subvenció municipal]]-G31","v":0},{"$f":"DespesesProjecte[[#This Row],[Import de l''aportació / Cofinançament de l''organització]]-H31","v":0},{"$f":"DespesesProjecte[[#This Row],[Import total del projecte]]-I31","v":0}]
[null,null,null,{"$f":"SUM(DespesesProjecte[[#This Row],[Import imputable a la subvenció municipal]],DespesesProjecte[[#This Row],[Import de l''aportació / Cofinançament de l''organització]])","v":0},null,null,null,null,0,null,{"$f":"DespesesProjecte[[#This Row],[Import imputable a la subvenció municipal]]-G32","v":0},{"$f":"DespesesProjecte[[#This Row],[Import de l''aportació / Cofinançament de l''organització]]-H32","v":0},{"$f":"DespesesProjecte[[#This Row],[Import total del projecte]]-I32","v":0}]
[null,null,null,{"$f":"SUM(DespesesProjecte[[#This Row],[Import imputable a la subvenció municipal]],DespesesProjecte[[#This Row],[Import de l''aportació / Cofinançament de l''organització]])","v":0},null,null,null,null,0,null,{"$f":"DespesesProjecte[[#This Row],[Import imputable a la subvenció municipal]]-G33","v":0},{"$f":"DespesesProjecte[[#This Row],[Import de l''aportació / Cofinançament de l''organització]]-H33","v":0},{"$f":"DespesesProjecte[[#This Row],[Import total del projecte]]-I33","v":0}]
[null,null,null,{"$f":"SUM(DespesesProjecte[[#This Row],[Import imputable a la subvenció municipal]],DespesesProjecte[[#This Row],[Import de l''aportació / Cofinançament de l''organització]])","v":0},null,null,null,null,0,null,{"$f":"DespesesProjecte[[#This Row],[Import imputable a la subvenció municipal]]-G34","v":0},{"$f":"DespesesProjecte[[#This Row],[Import de l''aportació / Cofinançament de l''organització]]-H34","v":0},{"$f":"DespesesProjecte[[#This Row],[Import total del projecte]]-I34","v":0}]
["D4. Transport – missatgeria imputables al projecte",{"$f":"SUM(B36:B38)","v":0},{"$f":"SUM(C36:C38)","v":0},{"$f":"DespesesProjecte[[#This Row],[Import imputable a la subvenció municipal]]+DespesesProjecte[[#This Row],[Import de l''aportació / Cofinançament de l''organització]]","v":0},null,"D4. Transport – missatgeria imputables al projecte",{"$f":"SUM(G36:G38)","v":0},{"$f":"SUM(H36:H38)","v":0},0,null,{"$f":"DespesesProjecte[[#This Row],[Import imputable a la subvenció municipal]]-G35","v":0},{"$f":"DespesesProjecte[[#This Row],[Import de l''aportació / Cofinançament de l''organització]]-H35","v":0},{"$f":"DespesesProjecte[[#This Row],[Import total del projecte]]-I35","v":0}]
[null,null,null,{"$f":"SUM(DespesesProjecte[[#This Row],[Import imputable a la subvenció municipal]],DespesesProjecte[[#This Row],[Import de l''aportació / Cofinançament de l''organització]])","v":0},null,null,null,null,0,null,{"$f":"DespesesProjecte[[#This Row],[Import imputable a la subvenció municipal]]-G36","v":0},{"$f":"DespesesProjecte[[#This Row],[Import de l''aportació / Cofinançament de l''organització]]-H36","v":0},{"$f":"DespesesProjecte[[#This Row],[Import total del projecte]]-I36","v":0}]
[null,null,null,{"$f":"SUM(DespesesProjecte[[#This Row],[Import imputable a la subvenció municipal]],DespesesProjecte[[#This Row],[Import de l''aportació / Cofinançament de l''organització]])","v":0},null,null,null,null,0,null,{"$f":"DespesesProjecte[[#This Row],[Import imputable a la subvenció municipal]]-G37","v":0},{"$f":"DespesesProjecte[[#This Row],[Import de l''aportació / Cofinançament de l''organització]]-H37","v":0},{"$f":"DespesesProjecte[[#This Row],[Import total del projecte]]-I37","v":0}]
[null,null,null,{"$f":"SUM(DespesesProjecte[[#This Row],[Import imputable a la subvenció municipal]],DespesesProjecte[[#This Row],[Import de l''aportació / Cofinançament de l''organització]])","v":0},null,null,null,null,0,null,{"$f":"DespesesProjecte[[#This Row],[Import imputable a la subvenció municipal]]-G38","v":0},{"$f":"DespesesProjecte[[#This Row],[Import de l''aportació / Cofinançament de l''organització]]-H38","v":0},{"$f":"DespesesProjecte[[#This Row],[Import total del projecte]]-I38","v":0}]
["D5. Publicitat i propaganda de les activitats directament vinculades al projecte",{"$f":"SUM(B40:B42)","v":0},{"$f":"SUM(C40:C42)","v":0},{"$f":"SUM(DespesesProjecte[[#This Row],[Import imputable a la subvenció municipal]],DespesesProjecte[[#This Row],[Import de l''aportació / Cofinançament de l''organització]])","v":0},null,"D5. Publicitat i propaganda de les activitats directament vinculades al projecte",{"$f":"SUM(G40:G42)","v":0},{"$f":"SUM(H40:H42)","v":0},0,null,{"$f":"DespesesProjecte[[#This Row],[Import imputable a la subvenció municipal]]-G39","v":0},{"$f":"DespesesProjecte[[#This Row],[Import de l''aportació / Cofinançament de l''organització]]-H39","v":0},{"$f":"DespesesProjecte[[#This Row],[Import total del projecte]]-I39","v":0}]
[null,null,null,{"$f":"SUM(DespesesProjecte[[#This Row],[Import imputable a la subvenció municipal]],DespesesProjecte[[#This Row],[Import de l''aportació / Cofinançament de l''organització]])","v":0},null,null,null,null,0,null,{"$f":"DespesesProjecte[[#This Row],[Import imputable a la subvenció municipal]]-G40","v":0},{"$f":"DespesesProjecte[[#This Row],[Import de l''aportació / Cofinançament de l''organització]]-H40","v":0},{"$f":"DespesesProjecte[[#This Row],[Import total del projecte]]-I40","v":0}]
[null,null,null,{"$f":"SUM(DespesesProjecte[[#This Row],[Import imputable a la subvenció municipal]],DespesesProjecte[[#This Row],[Import de l''aportació / Cofinançament de l''organització]])","v":0},null,null,null,null,0,null,{"$f":"DespesesProjecte[[#This Row],[Import imputable a la subvenció municipal]]-G41","v":0},{"$f":"DespesesProjecte[[#This Row],[Import de l''aportació / Cofinançament de l''organització]]-H41","v":0},{"$f":"DespesesProjecte[[#This Row],[Import total del projecte]]-I41","v":0}]
[null,null,null,{"$f":"SUM(DespesesProjecte[[#This Row],[Import imputable a la subvenció municipal]],DespesesProjecte[[#This Row],[Import de l''aportació / Cofinançament de l''organització]])","v":0},null,null,null,null,0,null,{"$f":"DespesesProjecte[[#This Row],[Import imputable a la subvenció municipal]]-G42","v":0},{"$f":"DespesesProjecte[[#This Row],[Import de l''aportació / Cofinançament de l''organització]]-H42","v":0},{"$f":"DespesesProjecte[[#This Row],[Import total del projecte]]-I42","v":0}]
["D6. Allotjament i dietes, del personal contractat i voluntari, vinculats al projecte",{"$f":"SUM(B44:B46)","v":0},{"$f":"SUM(C44:C46)","v":0},{"$f":"SUM(DespesesProjecte[[#This Row],[Import imputable a la subvenció municipal]],DespesesProjecte[[#This Row],[Import de l''aportació / Cofinançament de l''organització]])","v":0},null,"D6. Allotjament i dietes, del personal contractat i voluntari, vinculats al projecte",{"$f":"SUM(G44:G46)","v":0},{"$f":"SUM(H44:H46)","v":0},0,null,{"$f":"DespesesProjecte[[#This Row],[Import imputable a la subvenció municipal]]-G43","v":0},{"$f":"DespesesProjecte[[#This Row],[Import de l''aportació / Cofinançament de l''organització]]-H43","v":0},{"$f":"DespesesProjecte[[#This Row],[Import total del projecte]]-I43","v":0}]
[null,null,null,{"$f":"SUM(DespesesProjecte[[#This Row],[Import imputable a la subvenció municipal]],DespesesProjecte[[#This Row],[Import de l''aportació / Cofinançament de l''organització]])","v":0},null,null,null,null,0,null,{"$f":"DespesesProjecte[[#This Row],[Import imputable a la subvenció municipal]]-G44","v":0},{"$f":"DespesesProjecte[[#This Row],[Import de l''aportació / Cofinançament de l''organització]]-H44","v":0},{"$f":"DespesesProjecte[[#This Row],[Import total del projecte]]-I44","v":0}]
[null,null,null,{"$f":"SUM(DespesesProjecte[[#This Row],[Import imputable a la subvenció municipal]],DespesesProjecte[[#This Row],[Import de l''aportació / Cofinançament de l''organització]])","v":0},null,null,null,null,0,null,{"$f":"DespesesProjecte[[#This Row],[Import imputable a la subvenció municipal]]-G45","v":0},{"$f":"DespesesProjecte[[#This Row],[Import de l''aportació / Cofinançament de l''organització]]-H45","v":0},{"$f":"DespesesProjecte[[#This Row],[Import total del projecte]]-I45","v":0}]
[null,null,null,{"$f":"SUM(DespesesProjecte[[#This Row],[Import imputable a la subvenció municipal]],DespesesProjecte[[#This Row],[Import de l''aportació / Cofinançament de l''organització]])","v":0},null,null,null,null,0,null,{"$f":"DespesesProjecte[[#This Row],[Import imputable a la subvenció municipal]]-G46","v":0},{"$f":"DespesesProjecte[[#This Row],[Import de l''aportació / Cofinançament de l''organització]]-H46","v":0},{"$f":"DespesesProjecte[[#This Row],[Import total del projecte]]-I46","v":0}]
["D7. Ajuts al transport per als/les participants dels projectes en cas que sigui necessari de manera justificada",{"$f":"SUM(B48:B50)","v":0},{"$f":"SUM(C48:C50)","v":0},{"$f":"SUM(DespesesProjecte[[#This Row],[Import imputable a la subvenció municipal]],DespesesProjecte[[#This Row],[Import de l''aportació / Cofinançament de l''organització]])","v":0},null,"D7. Ajuts al transport per als/les participants dels projectes en cas que sigui necessari de manera justificada",{"$f":"SUM(G48:G50)","v":0},{"$f":"SUM(H48:H50)","v":0},0,null,{"$f":"DespesesProjecte[[#This Row],[Import imputable a la subvenció municipal]]-G47","v":0},{"$f":"DespesesProjecte[[#This Row],[Import de l''aportació / Cofinançament de l''organització]]-H47","v":0},{"$f":"DespesesProjecte[[#This Row],[Import total del projecte]]-I47","v":0}]
[null,null,null,{"$f":"SUM(DespesesProjecte[[#This Row],[Import imputable a la subvenció municipal]],DespesesProjecte[[#This Row],[Import de l''aportació / Cofinançament de l''organització]])","v":0},null,null,null,null,0,null,{"$f":"DespesesProjecte[[#This Row],[Import imputable a la subvenció municipal]]-G48","v":0},{"$f":"DespesesProjecte[[#This Row],[Import de l''aportació / Cofinançament de l''organització]]-H48","v":0},{"$f":"DespesesProjecte[[#This Row],[Import total del projecte]]-I48","v":0}]
[null,null,null,{"$f":"SUM(DespesesProjecte[[#This Row],[Import imputable a la subvenció municipal]],DespesesProjecte[[#This Row],[Import de l''aportació / Cofinançament de l''organització]])","v":0},null,null,null,null,0,null,{"$f":"DespesesProjecte[[#This Row],[Import imputable a la subvenció municipal]]-G49","v":0},{"$f":"DespesesProjecte[[#This Row],[Import de l''aportació / Cofinançament de l''organització]]-H49","v":0},{"$f":"DespesesProjecte[[#This Row],[Import total del projecte]]-I49","v":0}]
[null,null,null,{"$f":"SUM(DespesesProjecte[[#This Row],[Import imputable a la subvenció municipal]],DespesesProjecte[[#This Row],[Import de l''aportació / Cofinançament de l''organització]])","v":0},null,null,null,null,0,null,{"$f":"DespesesProjecte[[#This Row],[Import imputable a la subvenció municipal]]-G50","v":0},{"$f":"DespesesProjecte[[#This Row],[Import de l''aportació / Cofinançament de l''organització]]-H50","v":0},{"$f":"DespesesProjecte[[#This Row],[Import total del projecte]]-I50","v":0}]
["D8. Viatges i desplaçaments imputables a les activitats del projecte",{"$f":"SUM(B52:B54)","v":0},{"$f":"SUM(C52:C54)","v":0},{"$f":"DespesesProjecte[[#This Row],[Import imputable a la subvenció municipal]]+DespesesProjecte[[#This Row],[Import de l''aportació / Cofinançament de l''organització]]","v":0},null,"D8. Viatges i desplaçaments imputables a les activitats del projecte",{"$f":"SUM(G52:G54)","v":0},{"$f":"SUM(H52:H54)","v":0},0,null,{"$f":"DespesesProjecte[[#This Row],[Import imputable a la subvenció municipal]]-G51","v":0},{"$f":"DespesesProjecte[[#This Row],[Import de l''aportació / Cofinançament de l''organització]]-H51","v":0},{"$f":"DespesesProjecte[[#This Row],[Import total del projecte]]-I51","v":0}]
[null,null,null,{"$f":"SUM(DespesesProjecte[[#This Row],[Import imputable a la subvenció municipal]],DespesesProjecte[[#This Row],[Import de l''aportació / Cofinançament de l''organització]])","v":0},null,null,null,null,0,null,{"$f":"DespesesProjecte[[#This Row],[Import imputable a la subvenció municipal]]-G52","v":0},{"$f":"DespesesProjecte[[#This Row],[Import de l''aportació / Cofinançament de l''organització]]-H52","v":0},{"$f":"DespesesProjecte[[#This Row],[Import total del projecte]]-I52","v":0}]
[null,null,null,{"$f":"SUM(DespesesProjecte[[#This Row],[Import imputable a la subvenció municipal]],DespesesProjecte[[#This Row],[Import de l''aportació / Cofinançament de l''organització]])","v":0},null,null,null,null,0,null,{"$f":"DespesesProjecte[[#This Row],[Import imputable a la subvenció municipal]]-G53","v":0},{"$f":"DespesesProjecte[[#This Row],[Import de l''aportació / Cofinançament de l''organització]]-H53","v":0},{"$f":"DespesesProjecte[[#This Row],[Import total del projecte]]-I53","v":0}]
[null,null,null,{"$f":"SUM(DespesesProjecte[[#This Row],[Import imputable a la subvenció municipal]],DespesesProjecte[[#This Row],[Import de l''aportació / Cofinançament de l''organització]])","v":0},null,null,null,null,0,null,{"$f":"DespesesProjecte[[#This Row],[Import imputable a la subvenció municipal]]-G54","v":0},{"$f":"DespesesProjecte[[#This Row],[Import de l''aportació / Cofinançament de l''organització]]-H54","v":0},{"$f":"DespesesProjecte[[#This Row],[Import total del projecte]]-I54","v":0}]
["D9.Tributs, quan siguin abonats directament per la persona jurídica o física beneficiària",{"$f":"SUM(B56:B58)","v":0},{"$f":"SUM(C56:C58)","v":0},{"$f":"DespesesProjecte[[#This Row],[Import imputable a la subvenció municipal]]+DespesesProjecte[[#This Row],[Import de l''aportació / Cofinançament de l''organització]]","v":0},null,"D9.Tributs, quan siguin abonats directament per la persona jurídica o física beneficiària",{"$f":"SUM(G56:G58)","v":0},{"$f":"SUM(H56:H58)","v":0},0,null,{"$f":"DespesesProjecte[[#This Row],[Import imputable a la subvenció municipal]]-G55","v":0},{"$f":"DespesesProjecte[[#This Row],[Import de l''aportació / Cofinançament de l''organització]]-H55","v":0},{"$f":"DespesesProjecte[[#This Row],[Import total del projecte]]-I55","v":0}]
[null,null,null,{"$f":"SUM(DespesesProjecte[[#This Row],[Import imputable a la subvenció municipal]],DespesesProjecte[[#This Row],[Import de l''aportació / Cofinançament de l''organització]])","v":0},null,null,null,null,0,null,{"$f":"DespesesProjecte[[#This Row],[Import imputable a la subvenció municipal]]-G56","v":0},{"$f":"DespesesProjecte[[#This Row],[Import de l''aportació / Cofinançament de l''organització]]-H56","v":0},{"$f":"DespesesProjecte[[#This Row],[Import total del projecte]]-I56","v":0}]
[null,null,null,{"$f":"SUM(DespesesProjecte[[#This Row],[Import imputable a la subvenció municipal]],DespesesProjecte[[#This Row],[Import de l''aportació / Cofinançament de l''organització]])","v":0},null,null,null,null,0,null,{"$f":"DespesesProjecte[[#This Row],[Import imputable a la subvenció municipal]]-G57","v":0},{"$f":"DespesesProjecte[[#This Row],[Import de l''aportació / Cofinançament de l''organització]]-H57","v":0},{"$f":"DespesesProjecte[[#This Row],[Import total del projecte]]-I57","v":0}]
[null,null,null,{"$f":"SUM(DespesesProjecte[[#This Row],[Import imputable a la subvenció municipal]],DespesesProjecte[[#This Row],[Import de l''aportació / Cofinançament de l''organització]])","v":0},null,null,null,null,0,null,{"$f":"DespesesProjecte[[#This Row],[Import imputable a la subvenció municipal]]-G58","v":0},{"$f":"DespesesProjecte[[#This Row],[Import de l''aportació / Cofinançament de l''organització]]-H58","v":0},{"$f":"DespesesProjecte[[#This Row],[Import total del projecte]]-I58","v":0}]
["D10. Despeses de l'informe d'auditoria (màxim 1.500€ subvenció)",{"$f":"SUM(B60:B62)","v":0},{"$f":"SUM(C60:C66)","v":0},{"$f":"DespesesProjecte[[#This Row],[Import imputable a la subvenció municipal]]+DespesesProjecte[[#This Row],[Import de l''aportació / Cofinançament de l''organització]]","v":0},null,"D10. Despeses de l'informe d'auditoria (màxim 1.500€ subvenció)",{"$f":"SUM(G60:G62)","v":0},{"$f":"SUM(H60:H66)","v":0},0,{"$f":"+IF(G59>1500,\"ALERTA: Màxim 1.500€ de l'import imputable a la subvenció municipal\", \" \")","v":" "},{"$f":"DespesesProjecte[[#This Row],[Import imputable a la subvenció municipal]]-G59","v":0},{"$f":"DespesesProjecte[[#This Row],[Import de l''aportació / Cofinançament de l''organització]]-H59","v":0},{"$f":"DespesesProjecte[[#This Row],[Import total del projecte]]-I59","v":0}]
[null,null,null,{"$f":"SUM(DespesesProjecte[[#This Row],[Import imputable a la subvenció municipal]],DespesesProjecte[[#This Row],[Import de l''aportació / Cofinançament de l''organització]])","v":0},null,null,null,null,0,null,{"$f":"DespesesProjecte[[#This Row],[Import imputable a la subvenció municipal]]-G60","v":0},{"$f":"DespesesProjecte[[#This Row],[Import de l''aportació / Cofinançament de l''organització]]-H60","v":0},{"$f":"DespesesProjecte[[#This Row],[Import total del projecte]]-I60","v":0}]
[null,null,null,{"$f":"SUM(DespesesProjecte[[#This Row],[Import imputable a la subvenció municipal]],DespesesProjecte[[#This Row],[Import de l''aportació / Cofinançament de l''organització]])","v":0},null,null,null,null,0,null,{"$f":"DespesesProjecte[[#This Row],[Import imputable a la subvenció municipal]]-G61","v":0},{"$f":"DespesesProjecte[[#This Row],[Import de l''aportació / Cofinançament de l''organització]]-H61","v":0},{"$f":"DespesesProjecte[[#This Row],[Import total del projecte]]-I61","v":0}]
[null,null,null,{"$f":"SUM(DespesesProjecte[[#This Row],[Import imputable a la subvenció municipal]],DespesesProjecte[[#This Row],[Import de l''aportació / Cofinançament de l''organització]])","v":0},null,null,null,null,0,null,{"$f":"DespesesProjecte[[#This Row],[Import imputable a la subvenció municipal]]-G62","v":0},{"$f":"DespesesProjecte[[#This Row],[Import de l''aportació / Cofinançament de l''organització]]-H62","v":0},{"$f":"DespesesProjecte[[#This Row],[Import total del projecte]]-I62","v":0}]
["D11. Altres despeses que de manera justificada i per la tipologia del projecte puguin imputar-se directament al projecte",{"$f":"SUM(B64:B66)","v":0},{"$f":"SUM(C64:C66)","v":0},{"$f":"DespesesProjecte[[#This Row],[Import imputable a la subvenció municipal]]+DespesesProjecte[[#This Row],[Import de l''aportació / Cofinançament de l''organització]]","v":0},null,"D11. Altres despeses que de manera justificada i per la tipologia del projecte puguin imputar-se directament al projecte",{"$f":"SUM(G64:G66)","v":0},{"$f":"SUM(H64:H66)","v":0},0,null,{"$f":"DespesesProjecte[[#This Row],[Import imputable a la subvenció municipal]]-G63","v":0},{"$f":"DespesesProjecte[[#This Row],[Import de l''aportació / Cofinançament de l''organització]]-H63","v":0},{"$f":"DespesesProjecte[[#This Row],[Import total del projecte]]-I63","v":0}]
[null,null,null,{"$f":"SUM(DespesesProjecte[[#This Row],[Import imputable a la subvenció municipal]],DespesesProjecte[[#This Row],[Import de l''aportació / Cofinançament de l''organització]])","v":0},null,null,null,null,0,null,{"$f":"DespesesProjecte[[#This Row],[Import imputable a la subvenció municipal]]-G64","v":0},{"$f":"DespesesProjecte[[#This Row],[Import de l''aportació / Cofinançament de l''organització]]-H64","v":0},{"$f":"DespesesProjecte[[#This Row],[Import total del projecte]]-I64","v":0}]
[null,null,null,{"$f":"SUM(DespesesProjecte[[#This Row],[Import imputable a la subvenció municipal]],DespesesProjecte[[#This Row],[Import de l''aportació / Cofinançament de l''organització]])","v":0},null,null,null,null,0,null,{"$f":"DespesesProjecte[[#This Row],[Import imputable a la subvenció municipal]]-G65","v":0},{"$f":"DespesesProjecte[[#This Row],[Import de l''aportació / Cofinançament de l''organització]]-H65","v":0},{"$f":"DespesesProjecte[[#This Row],[Import total del projecte]]-I65","v":0}]
[null,null,null,{"$f":"SUM(DespesesProjecte[[#This Row],[Import imputable a la subvenció municipal]],DespesesProjecte[[#This Row],[Import de l''aportació / Cofinançament de l''organització]])","v":0},null,null,null,null,0,null,{"$f":"DespesesProjecte[[#This Row],[Import imputable a la subvenció municipal]]-G66","v":0},{"$f":"DespesesProjecte[[#This Row],[Import de l''aportació / Cofinançament de l''organització]]-H66","v":0},{"$f":"DespesesProjecte[[#This Row],[Import total del projecte]]-I66","v":0}]
["TOTAL D'ALTRES DESPESES DIRECTES",{"$f":"B27+B31+B35+B39+B43+B47+B51+B55+B59+B63","v":0},{"$f":"C27+C31+C35+C39+C43+C47+C51+C55+C59+C63","v":0},{"$f":"D27+D31+D35+D39+D43+D47+D51+D55+D59+D63","v":0},null,"TOTAL D'ALTRES DESPESES DIRECTES",{"$f":"G27+G31+G35+G39+G43+G47+G51+G55+G59+G63","v":0},{"$f":"H27+H31+H35+H39+H43+H47+H51+H55+H59+H63","v":0},{"$f":"I27+I31+I35+I39+I43+I47+I51+I55+I59+I63","v":0},null,{"$f":"DespesesProjecte[[#This Row],[Import imputable a la subvenció municipal]]-G67","v":0},{"$f":"DespesesProjecte[[#This Row],[Import de l''aportació / Cofinançament de l''organització]]-H67","v":0},{"$f":"DespesesProjecte[[#This Row],[Import total del projecte]]-I67","v":0}]
["TOTAL DESPESES DIRECTES (aquelles que s’identifiquen directament amb el projecte subvencionable)",{"$f":"B26+B67","v":0},{"$f":"C26+C67","v":0},{"$f":"D26+D67","v":0},null,"TOTAL DESPESES DIRECTES (aquelles que s’identifiquen directament amb el projecte subvencionable)",{"$f":"G26+G67","v":0},{"$f":"H26+H67","v":0},{"$f":"I26+I67","v":0},null,{"$f":"DespesesProjecte[[#This Row],[Import imputable a la subvenció municipal]]-G68","v":0},{"$f":"DespesesProjecte[[#This Row],[Import de l''aportació / Cofinançament de l''organització]]-H68","v":0},{"$f":"DespesesProjecte[[#This Row],[Import total del projecte]]-I68","v":0}]
["I1. Personal propi vinculat indirectament (nòmines i seguretat social) ",{"$f":"SUM(B70:B72)","v":0},{"$f":"SUM(C70:C72)","v":0},{"$f":"SUM(DespesesProjecte[[#This Row],[Import imputable a la subvenció municipal]],DespesesProjecte[[#This Row],[Import de l''aportació / Cofinançament de l''organització]])","v":0},null,"I1. Personal propi vinculat indirectament (nòmines i seguretat social) ",{"$f":"SUM(G70:G72)","v":0},{"$f":"SUM(H70:H72)","v":0},{"$f":"+G69+H69","v":0},null,{"$f":"DespesesProjecte[[#This Row],[Import imputable a la subvenció municipal]]-G69","v":0},{"$f":"DespesesProjecte[[#This Row],[Import de l''aportació / Cofinançament de l''organització]]-H69","v":0},{"$f":"DespesesProjecte[[#This Row],[Import total del projecte]]-I69","v":0}]
[null,null,null,{"$f":"SUM(DespesesProjecte[[#This Row],[Import imputable a la subvenció municipal]],DespesesProjecte[[#This Row],[Import de l''aportació / Cofinançament de l''organització]])","v":0},null,null,null,null,{"$f":"+G70+H70","v":0},null,{"$f":"DespesesProjecte[[#This Row],[Import imputable a la subvenció municipal]]-G70","v":0},{"$f":"DespesesProjecte[[#This Row],[Import de l''aportació / Cofinançament de l''organització]]-H70","v":0},{"$f":"DespesesProjecte[[#This Row],[Import total del projecte]]-I70","v":0}]
[null,null,null,{"$f":"SUM(DespesesProjecte[[#This Row],[Import imputable a la subvenció municipal]],DespesesProjecte[[#This Row],[Import de l''aportació / Cofinançament de l''organització]])","v":0},null,null,null,null,0,null,{"$f":"DespesesProjecte[[#This Row],[Import imputable a la subvenció municipal]]-G71","v":0},{"$f":"DespesesProjecte[[#This Row],[Import de l''aportació / Cofinançament de l''organització]]-H71","v":0},{"$f":"DespesesProjecte[[#This Row],[Import total del projecte]]-I71","v":0}]
[null,null,null,{"$f":"SUM(DespesesProjecte[[#This Row],[Import imputable a la subvenció municipal]],DespesesProjecte[[#This Row],[Import de l''aportació / Cofinançament de l''organització]])","v":0},null,null,null,null,0,null,{"$f":"DespesesProjecte[[#This Row],[Import imputable a la subvenció municipal]]-G72","v":0},{"$f":"DespesesProjecte[[#This Row],[Import de l''aportació / Cofinançament de l''organització]]-H72","v":0},{"$f":"DespesesProjecte[[#This Row],[Import total del projecte]]-I72","v":0}]
["I2.  Assegurances",{"$f":"SUM(B74:B76)","v":0},{"$f":"SUM(C74:C76)","v":0},{"$f":"SUM(DespesesProjecte[[#This Row],[Import imputable a la subvenció municipal]],DespesesProjecte[[#This Row],[Import de l''aportació / Cofinançament de l''organització]])","v":0},null,"I2.  Assegurances",{"$f":"SUM(G74:G76)","v":0},{"$f":"SUM(H74:H76)","v":0},0,null,{"$f":"DespesesProjecte[[#This Row],[Import imputable a la subvenció municipal]]-G73","v":0},{"$f":"DespesesProjecte[[#This Row],[Import de l''aportació / Cofinançament de l''organització]]-H73","v":0},{"$f":"DespesesProjecte[[#This Row],[Import total del projecte]]-I73","v":0}]
[null,null,null,{"$f":"SUM(DespesesProjecte[[#This Row],[Import imputable a la subvenció municipal]],DespesesProjecte[[#This Row],[Import de l''aportació / Cofinançament de l''organització]])","v":0},null,null,null,null,0,null,{"$f":"DespesesProjecte[[#This Row],[Import imputable a la subvenció municipal]]-G74","v":0},{"$f":"DespesesProjecte[[#This Row],[Import de l''aportació / Cofinançament de l''organització]]-H74","v":0},{"$f":"DespesesProjecte[[#This Row],[Import total del projecte]]-I74","v":0}]
[null,null,null,{"$f":"SUM(DespesesProjecte[[#This Row],[Import imputable a la subvenció municipal]],DespesesProjecte[[#This Row],[Import de l''aportació / Cofinançament de l''organització]])","v":0},null,null,null,null,0,null,{"$f":"DespesesProjecte[[#This Row],[Import imputable a la subvenció municipal]]-G75","v":0},{"$f":"DespesesProjecte[[#This Row],[Import de l''aportació / Cofinançament de l''organització]]-H75","v":0},{"$f":"DespesesProjecte[[#This Row],[Import total del projecte]]-I75","v":0}]
[null,null,null,{"$f":"SUM(DespesesProjecte[[#This Row],[Import imputable a la subvenció municipal]],DespesesProjecte[[#This Row],[Import de l''aportació / Cofinançament de l''organització]])","v":0},null,null,null,null,0,null,{"$f":"DespesesProjecte[[#This Row],[Import imputable a la subvenció municipal]]-G76","v":0},{"$f":"DespesesProjecte[[#This Row],[Import de l''aportació / Cofinançament de l''organització]]-H76","v":0},{"$f":"DespesesProjecte[[#This Row],[Import total del projecte]]-I76","v":0}]
["I3.  Amortització",{"$f":"SUM(B78:B80)","v":0},{"$f":"SUM(C78:C80)","v":0},{"$f":"SUM(DespesesProjecte[[#This Row],[Import imputable a la subvenció municipal]],DespesesProjecte[[#This Row],[Import de l''aportació / Cofinançament de l''organització]])","v":0},null,"I3.  Amortització",{"$f":"SUM(G78:G80)","v":0},{"$f":"SUM(H78:H80)","v":0},0,null,{"$f":"DespesesProjecte[[#This Row],[Import imputable a la subvenció municipal]]-G77","v":0},{"$f":"DespesesProjecte[[#This Row],[Import de l''aportació / Cofinançament de l''organització]]-H77","v":0},{"$f":"DespesesProjecte[[#This Row],[Import total del projecte]]-I77","v":0}]
[null,null,null,{"$f":"SUM(DespesesProjecte[[#This Row],[Import imputable a la subvenció municipal]],DespesesProjecte[[#This Row],[Import de l''aportació / Cofinançament de l''organització]])","v":0},null,null,null,null,0,null,{"$f":"DespesesProjecte[[#This Row],[Import imputable a la subvenció municipal]]-G78","v":0},{"$f":"DespesesProjecte[[#This Row],[Import de l''aportació / Cofinançament de l''organització]]-H78","v":0},{"$f":"DespesesProjecte[[#This Row],[Import total del projecte]]-I78","v":0}]
[null,null,null,{"$f":"SUM(DespesesProjecte[[#This Row],[Import imputable a la subvenció municipal]],DespesesProjecte[[#This Row],[Import de l''aportació / Cofinançament de l''organització]])","v":0},null,null,null,null,0,null,{"$f":"DespesesProjecte[[#This Row],[Import imputable a la subvenció municipal]]-G79","v":0},{"$f":"DespesesProjecte[[#This Row],[Import de l''aportació / Cofinançament de l''organització]]-H79","v":0},{"$f":"DespesesProjecte[[#This Row],[Import total del projecte]]-I79","v":0}]
[null,null,null,{"$f":"SUM(DespesesProjecte[[#This Row],[Import imputable a la subvenció municipal]],DespesesProjecte[[#This Row],[Import de l''aportació / Cofinançament de l''organització]])","v":0},null,null,null,null,0,null,{"$f":"DespesesProjecte[[#This Row],[Import imputable a la subvenció municipal]]-G80","v":0},{"$f":"DespesesProjecte[[#This Row],[Import de l''aportació / Cofinançament de l''organització]]-H80","v":0},{"$f":"DespesesProjecte[[#This Row],[Import total del projecte]]-I80","v":0}]
["I4.  Lloguer de béns immobles",{"$f":"SUM(B82:B84)","v":0},{"$f":"SUM(C82:C84)","v":0},{"$f":"SUM(DespesesProjecte[[#This Row],[Import imputable a la subvenció municipal]],DespesesProjecte[[#This Row],[Import de l''aportació / Cofinançament de l''organització]])","v":0},null,"I4.  Lloguer de béns immobles",{"$f":"SUM(G82:G84)","v":0},{"$f":"SUM(H82:H84)","v":0},0,null,{"$f":"DespesesProjecte[[#This Row],[Import imputable a la subvenció municipal]]-G81","v":0},{"$f":"DespesesProjecte[[#This Row],[Import de l''aportació / Cofinançament de l''organització]]-H81","v":0},{"$f":"DespesesProjecte[[#This Row],[Import total del projecte]]-I81","v":0}]
[null,null,null,{"$f":"SUM(DespesesProjecte[[#This Row],[Import imputable a la subvenció municipal]],DespesesProjecte[[#This Row],[Import de l''aportació / Cofinançament de l''organització]])","v":0},null,null,null,null,0,null,{"$f":"DespesesProjecte[[#This Row],[Import imputable a la subvenció municipal]]-G82","v":0},{"$f":"DespesesProjecte[[#This Row],[Import de l''aportació / Cofinançament de l''organització]]-H82","v":0},{"$f":"DespesesProjecte[[#This Row],[Import total del projecte]]-I82","v":0}]
[null,null,null,{"$f":"SUM(DespesesProjecte[[#This Row],[Import imputable a la subvenció municipal]],DespesesProjecte[[#This Row],[Import de l''aportació / Cofinançament de l''organització]])","v":0},null,null,null,null,0,null,{"$f":"DespesesProjecte[[#This Row],[Import imputable a la subvenció municipal]]-G83","v":0},{"$f":"DespesesProjecte[[#This Row],[Import de l''aportació / Cofinançament de l''organització]]-H83","v":0},{"$f":"DespesesProjecte[[#This Row],[Import total del projecte]]-I83","v":0}]
[null,null,null,{"$f":"SUM(DespesesProjecte[[#This Row],[Import imputable a la subvenció municipal]],DespesesProjecte[[#This Row],[Import de l''aportació / Cofinançament de l''organització]])","v":0},null,null,null,null,0,null,{"$f":"DespesesProjecte[[#This Row],[Import imputable a la subvenció municipal]]-G84","v":0},{"$f":"DespesesProjecte[[#This Row],[Import de l''aportació / Cofinançament de l''organització]]-H84","v":0},{"$f":"DespesesProjecte[[#This Row],[Import total del projecte]]-I84","v":0}]
["I5.  Adquisició de materials i béns consumibles parcialment imputables al projecte",{"$f":"SUM(B86:B88)","v":0},{"$f":"SUM(C86:C88)","v":0},{"$f":"SUM(DespesesProjecte[[#This Row],[Import imputable a la subvenció municipal]],DespesesProjecte[[#This Row],[Import de l''aportació / Cofinançament de l''organització]])","v":0},null,"I5.  Adquisició de materials i béns consumibles parcialment imputables al projecte",{"$f":"SUM(G86:G88)","v":0},{"$f":"SUM(H86:H88)","v":0},0,null,{"$f":"DespesesProjecte[[#This Row],[Import imputable a la subvenció municipal]]-G85","v":0},{"$f":"DespesesProjecte[[#This Row],[Import de l''aportació / Cofinançament de l''organització]]-H85","v":0},{"$f":"DespesesProjecte[[#This Row],[Import total del projecte]]-I85","v":0}]
[null,null,null,{"$f":"SUM(DespesesProjecte[[#This Row],[Import imputable a la subvenció municipal]],DespesesProjecte[[#This Row],[Import de l''aportació / Cofinançament de l''organització]])","v":0},null,null,null,null,0,null,{"$f":"DespesesProjecte[[#This Row],[Import imputable a la subvenció municipal]]-G86","v":0},{"$f":"DespesesProjecte[[#This Row],[Import de l''aportació / Cofinançament de l''organització]]-H86","v":0},{"$f":"DespesesProjecte[[#This Row],[Import total del projecte]]-I86","v":0}]
[null,null,null,{"$f":"SUM(DespesesProjecte[[#This Row],[Import imputable a la subvenció municipal]],DespesesProjecte[[#This Row],[Import de l''aportació / Cofinançament de l''organització]])","v":0},null,null,null,null,0,null,{"$f":"DespesesProjecte[[#This Row],[Import imputable a la subvenció municipal]]-G87","v":0},{"$f":"DespesesProjecte[[#This Row],[Import de l''aportació / Cofinançament de l''organització]]-H87","v":0},{"$f":"DespesesProjecte[[#This Row],[Import total del projecte]]-I87","v":0}]
[null,null,null,{"$f":"SUM(DespesesProjecte[[#This Row],[Import imputable a la subvenció municipal]],DespesesProjecte[[#This Row],[Import de l''aportació / Cofinançament de l''organització]])","v":0},null,null,null,null,0,null,{"$f":"DespesesProjecte[[#This Row],[Import imputable a la subvenció municipal]]-G88","v":0},{"$f":"DespesesProjecte[[#This Row],[Import de l''aportació / Cofinançament de l''organització]]-H88","v":0},{"$f":"DespesesProjecte[[#This Row],[Import total del projecte]]-I88","v":0}]
["I6.  Manteniment d’edificis i/o instal·lacions",{"$f":"SUM(B90:B92)","v":0},{"$f":"SUM(C90:C92)","v":0},{"$f":"SUM(DespesesProjecte[[#This Row],[Import imputable a la subvenció municipal]],DespesesProjecte[[#This Row],[Import de l''aportació / Cofinançament de l''organització]])","v":0},null,"I6.  Manteniment d’edificis i/o instal·lacions",{"$f":"SUM(G90:G92)","v":0},{"$f":"SUM(H90:H92)","v":0},0,null,{"$f":"DespesesProjecte[[#This Row],[Import imputable a la subvenció municipal]]-G89","v":0},{"$f":"DespesesProjecte[[#This Row],[Import de l''aportació / Cofinançament de l''organització]]-H89","v":0},{"$f":"DespesesProjecte[[#This Row],[Import total del projecte]]-I89","v":0}]
[null,null,null,{"$f":"SUM(DespesesProjecte[[#This Row],[Import imputable a la subvenció municipal]],DespesesProjecte[[#This Row],[Import de l''aportació / Cofinançament de l''organització]])","v":0},null,null,null,null,0,null,{"$f":"DespesesProjecte[[#This Row],[Import imputable a la subvenció municipal]]-G90","v":0},{"$f":"DespesesProjecte[[#This Row],[Import de l''aportació / Cofinançament de l''organització]]-H90","v":0},{"$f":"DespesesProjecte[[#This Row],[Import total del projecte]]-I90","v":0}]
[null,null,null,{"$f":"SUM(DespesesProjecte[[#This Row],[Import imputable a la subvenció municipal]],DespesesProjecte[[#This Row],[Import de l''aportació / Cofinançament de l''organització]])","v":0},null,null,null,null,0,null,{"$f":"DespesesProjecte[[#This Row],[Import imputable a la subvenció municipal]]-G91","v":0},{"$f":"DespesesProjecte[[#This Row],[Import de l''aportació / Cofinançament de l''organització]]-H91","v":0},{"$f":"DespesesProjecte[[#This Row],[Import total del projecte]]-I91","v":0}]
[null,null,null,{"$f":"SUM(DespesesProjecte[[#This Row],[Import imputable a la subvenció municipal]],DespesesProjecte[[#This Row],[Import de l''aportació / Cofinançament de l''organització]])","v":0},null,null,null,null,0,null,{"$f":"DespesesProjecte[[#This Row],[Import imputable a la subvenció municipal]]-G92","v":0},{"$f":"DespesesProjecte[[#This Row],[Import de l''aportació / Cofinançament de l''organització]]-H92","v":0},{"$f":"DespesesProjecte[[#This Row],[Import total del projecte]]-I92","v":0}]
["I7.  Comunicacions (telèfon, correus, connexió a internet)",{"$f":"SUM(B94:B96)","v":0},{"$f":"SUM(C94:C96)","v":0},{"$f":"SUM(DespesesProjecte[[#This Row],[Import imputable a la subvenció municipal]],DespesesProjecte[[#This Row],[Import de l''aportació / Cofinançament de l''organització]])","v":0},null,"I7.  Comunicacions (telèfon, correus, connexió a internet)",{"$f":"SUM(G94:G96)","v":0},{"$f":"SUM(H94:H96)","v":0},0,null,{"$f":"DespesesProjecte[[#This Row],[Import imputable a la subvenció municipal]]-G93","v":0},{"$f":"DespesesProjecte[[#This Row],[Import de l''aportació / Cofinançament de l''organització]]-H93","v":0},{"$f":"DespesesProjecte[[#This Row],[Import total del projecte]]-I93","v":0}]
[null,null,null,{"$f":"SUM(DespesesProjecte[[#This Row],[Import imputable a la subvenció municipal]],DespesesProjecte[[#This Row],[Import de l''aportació / Cofinançament de l''organització]])","v":0},null,null,null,null,0,null,{"$f":"DespesesProjecte[[#This Row],[Import imputable a la subvenció municipal]]-G94","v":0},{"$f":"DespesesProjecte[[#This Row],[Import de l''aportació / Cofinançament de l''organització]]-H94","v":0},{"$f":"DespesesProjecte[[#This Row],[Import total del projecte]]-I94","v":0}]
[null,null,null,{"$f":"SUM(DespesesProjecte[[#This Row],[Import imputable a la subvenció municipal]],DespesesProjecte[[#This Row],[Import de l''aportació / Cofinançament de l''organització]])","v":0},null,null,null,null,0,null,{"$f":"DespesesProjecte[[#This Row],[Import imputable a la subvenció municipal]]-G95","v":0},{"$f":"DespesesProjecte[[#This Row],[Import de l''aportació / Cofinançament de l''organització]]-H95","v":0},{"$f":"DespesesProjecte[[#This Row],[Import total del projecte]]-I95","v":0}]
[null,null,null,{"$f":"SUM(DespesesProjecte[[#This Row],[Import imputable a la subvenció municipal]],DespesesProjecte[[#This Row],[Import de l''aportació / Cofinançament de l''organització]])","v":0},null,null,null,null,0,null,{"$f":"DespesesProjecte[[#This Row],[Import imputable a la subvenció municipal]]-G96","v":0},{"$f":"DespesesProjecte[[#This Row],[Import de l''aportació / Cofinançament de l''organització]]-H96","v":0},{"$f":"DespesesProjecte[[#This Row],[Import total del projecte]]-I96","v":0}]
["I8.  Despeses financeres",{"$f":"SUM(B98:B100)","v":0},{"$f":"SUM(C98:C100)","v":0},{"$f":"SUM(DespesesProjecte[[#This Row],[Import imputable a la subvenció municipal]],DespesesProjecte[[#This Row],[Import de l''aportació / Cofinançament de l''organització]])","v":0},null,"I8.  Despeses financeres",{"$f":"SUM(G98:G100)","v":0},{"$f":"SUM(H98:H100)","v":0},0,null,{"$f":"DespesesProjecte[[#This Row],[Import imputable a la subvenció municipal]]-G97","v":0},{"$f":"DespesesProjecte[[#This Row],[Import de l''aportació / Cofinançament de l''organització]]-H97","v":0},{"$f":"DespesesProjecte[[#This Row],[Import total del projecte]]-I97","v":0}]
[null,null,null,{"$f":"SUM(DespesesProjecte[[#This Row],[Import imputable a la subvenció municipal]],DespesesProjecte[[#This Row],[Import de l''aportació / Cofinançament de l''organització]])","v":0},null,null,null,null,0,null,{"$f":"DespesesProjecte[[#This Row],[Import imputable a la subvenció municipal]]-G98","v":0},{"$f":"DespesesProjecte[[#This Row],[Import de l''aportació / Cofinançament de l''organització]]-H98","v":0},{"$f":"DespesesProjecte[[#This Row],[Import total del projecte]]-I98","v":0}]
[null,null,null,{"$f":"SUM(DespesesProjecte[[#This Row],[Import imputable a la subvenció municipal]],DespesesProjecte[[#This Row],[Import de l''aportació / Cofinançament de l''organització]])","v":0},null,null,null,null,0,null,{"$f":"DespesesProjecte[[#This Row],[Import imputable a la subvenció municipal]]-G99","v":0},{"$f":"DespesesProjecte[[#This Row],[Import de l''aportació / Cofinançament de l''organització]]-H99","v":0},{"$f":"DespesesProjecte[[#This Row],[Import total del projecte]]-I99","v":0}]
[null,null,null,{"$f":"SUM(DespesesProjecte[[#This Row],[Import imputable a la subvenció municipal]],DespesesProjecte[[#This Row],[Import de l''aportació / Cofinançament de l''organització]])","v":0},null,null,null,null,0,null,{"$f":"DespesesProjecte[[#This Row],[Import imputable a la subvenció municipal]]-G100","v":0},{"$f":"DespesesProjecte[[#This Row],[Import de l''aportació / Cofinançament de l''organització]]-H100","v":0},{"$f":"DespesesProjecte[[#This Row],[Import total del projecte]]-I100","v":0}]
["I9.  Subministraments ",{"$f":"SUM(B102:B104)","v":0},{"$f":"SUM(C102:C104)","v":0},{"$f":"SUM(DespesesProjecte[[#This Row],[Import imputable a la subvenció municipal]],DespesesProjecte[[#This Row],[Import de l''aportació / Cofinançament de l''organització]])","v":0},null,"I9.  Subministraments ",{"$f":"SUM(G102:G104)","v":0},{"$f":"SUM(H102:H104)","v":0},0,null,{"$f":"DespesesProjecte[[#This Row],[Import imputable a la subvenció municipal]]-G101","v":0},{"$f":"DespesesProjecte[[#This Row],[Import de l''aportació / Cofinançament de l''organització]]-H101","v":0},{"$f":"DespesesProjecte[[#This Row],[Import total del projecte]]-I101","v":0}]
[null,null,null,{"$f":"SUM(DespesesProjecte[[#This Row],[Import imputable a la subvenció municipal]],DespesesProjecte[[#This Row],[Import de l''aportació / Cofinançament de l''organització]])","v":0},null,null,null,null,0,null,{"$f":"DespesesProjecte[[#This Row],[Import imputable a la subvenció municipal]]-G102","v":0},{"$f":"DespesesProjecte[[#This Row],[Import de l''aportació / Cofinançament de l''organització]]-H102","v":0},{"$f":"DespesesProjecte[[#This Row],[Import total del projecte]]-I102","v":0}]
[null,null,null,{"$f":"SUM(DespesesProjecte[[#This Row],[Import imputable a la subvenció municipal]],DespesesProjecte[[#This Row],[Import de l''aportació / Cofinançament de l''organització]])","v":0},null,null,null,null,0,null,{"$f":"DespesesProjecte[[#This Row],[Import imputable a la subvenció municipal]]-G103","v":0},{"$f":"DespesesProjecte[[#This Row],[Import de l''aportació / Cofinançament de l''organització]]-H103","v":0},{"$f":"DespesesProjecte[[#This Row],[Import total del projecte]]-I103","v":0}]
[null,null,null,{"$f":"SUM(DespesesProjecte[[#This Row],[Import imputable a la subvenció municipal]],DespesesProjecte[[#This Row],[Import de l''aportació / Cofinançament de l''organització]])","v":0},null,null,null,null,0,null,{"$f":"DespesesProjecte[[#This Row],[Import imputable a la subvenció municipal]]-G104","v":0},{"$f":"DespesesProjecte[[#This Row],[Import de l''aportació / Cofinançament de l''organització]]-H104","v":0},{"$f":"DespesesProjecte[[#This Row],[Import total del projecte]]-I104","v":0}]
["I10.  Treball realitzat per altres empreses, parcialment imputables al projecte (neteja, seguretat...)",{"$f":"SUM(B106:B108)","v":0},{"$f":"SUM(C106:C108)","v":0},{"$f":"SUM(DespesesProjecte[[#This Row],[Import imputable a la subvenció municipal]],DespesesProjecte[[#This Row],[Import de l''aportació / Cofinançament de l''organització]])","v":0},null,"I10.  Treball realitzat per altres empreses, parcialment imputables al projecte (neteja, seguretat...)",{"$f":"SUM(G106:G108)","v":0},{"$f":"SUM(H106:H108)","v":0},0,null,{"$f":"DespesesProjecte[[#This Row],[Import imputable a la subvenció municipal]]-G105","v":0},{"$f":"DespesesProjecte[[#This Row],[Import de l''aportació / Cofinançament de l''organització]]-H105","v":0},{"$f":"DespesesProjecte[[#This Row],[Import total del projecte]]-I105","v":0}]
[null,null,null,{"$f":"SUM(DespesesProjecte[[#This Row],[Import imputable a la subvenció municipal]],DespesesProjecte[[#This Row],[Import de l''aportació / Cofinançament de l''organització]])","v":0},null,null,null,null,0,null,{"$f":"DespesesProjecte[[#This Row],[Import imputable a la subvenció municipal]]-G106","v":0},{"$f":"DespesesProjecte[[#This Row],[Import de l''aportació / Cofinançament de l''organització]]-H106","v":0},{"$f":"DespesesProjecte[[#This Row],[Import total del projecte]]-I106","v":0}]
[null,null,null,{"$f":"SUM(DespesesProjecte[[#This Row],[Import imputable a la subvenció municipal]],DespesesProjecte[[#This Row],[Import de l''aportació / Cofinançament de l''organització]])","v":0},null,null,null,null,0,null,{"$f":"DespesesProjecte[[#This Row],[Import imputable a la subvenció municipal]]-G107","v":0},{"$f":"DespesesProjecte[[#This Row],[Import de l''aportació / Cofinançament de l''organització]]-H107","v":0},{"$f":"DespesesProjecte[[#This Row],[Import total del projecte]]-I107","v":0}]
[null,null,null,{"$f":"SUM(DespesesProjecte[[#This Row],[Import imputable a la subvenció municipal]],DespesesProjecte[[#This Row],[Import de l''aportació / Cofinançament de l''organització]])","v":0},null,null,null,null,0,null,{"$f":"DespesesProjecte[[#This Row],[Import imputable a la subvenció municipal]]-G108","v":0},{"$f":"DespesesProjecte[[#This Row],[Import de l''aportació / Cofinançament de l''organització]]-H108","v":0},{"$f":"DespesesProjecte[[#This Row],[Import total del projecte]]-I108","v":0}]
["TOTAL DESPESES INDIRECTES (es podran assignar al projecte subvencionable fent sevir un percentatge d’assignació) - Màxim 10% de l’import imputable a la subvenció municipal",{"$f":"SUM(B69,B73,B77,B81,B85,B89,B93,B97,B101,B105)","v":0},{"$f":"SUM(C69,C73,C77,C81,C85,C89,C93,C97,C101,C105)","v":0},{"$f":"SUM(D69,D73,D77,D81,D85,D89,D93,D97,D101,D105)","v":0},null,"TOTAL DESPESES INDIRECTES (es podran assignar al projecte subvencionable fent sevir un percentatge d’assignació) - Màxim 10% de l’import imputable a la subvenció municipal",{"$f":"SUM(G69,G73,G77,G81,G85,G89,G93,G97,G101,G105)","v":0},{"$f":"SUM(H69,H73,H77,H81,H85,H89,H93,H97,H101,H105)","v":0},{"$f":"SUM(I69,I73,I77,I81,I85,I89,I93,I97,I101,I105)","v":0},{"$f":"+IF(G109>G12*0.1,\"ALERTA: Màxim 10% de l'import imputable a la subvenció municipal\", \" \")","v":" "},{"$f":"DespesesProjecte[[#This Row],[Import imputable a la subvenció municipal]]-G109","v":0},{"$f":"DespesesProjecte[[#This Row],[Import de l''aportació / Cofinançament de l''organització]]-H109","v":0},{"$f":"DespesesProjecte[[#This Row],[Import total del projecte]]-I109","v":0}]
["TOTAL DE DESPESES PREVISTES",{"$f":"SUM(B109,B68)","v":0},{"$f":"SUM(C109,C68)","v":0},{"$f":"SUM(D109,D68)","v":0},null,"TOTAL DE DESPESES PREVISTES",{"$f":"SUM(G109,G68)","v":0},{"$f":"SUM(H109,H68)","v":0},{"$f":"SUM(I109,I68)","v":0},null,{"$f":"DespesesProjecte[[#This Row],[Import imputable a la subvenció municipal]]-G95","v":0},{"$f":"DespesesProjecte[[#This Row],[Import de l''aportació / Cofinançament de l''organització]]-H95","v":0},{"$f":"DespesesProjecte[[#This Row],[Import total del projecte]]-I95","v":0}]
[]
[]
["Modalitat Bc. Projectes i accions d’intercooperació significatives pel desenvolupament dels Projectes de Ciutat de l’#ESSBCN2030"]
["1.  La quantia de la subvenció atorgada no superarà el 80% de la despesa total del projecte a subvencionar. "]
["2. L'import màxim de subvenció per a aquesta modalitat Bc de l'àmbit temàtic de (B) Intercooperació és 20.000€."]
["3. En el cas que la sol·licitud presentada sobrepassi l’import màxim, es considerarà com a import sol·licitat el màxim de l'establert a la convocatòria."]
["4. En aquesta modalitat s’acceptarà la imputació de despeses de personal propi i directament vinculat al projecte de les organitzacions participants de l’acord de d’intercooperació presentat pel desenvolupament del projecte subvencionable."]
["5. Es limita amb un màxim del 25% l’import de la subvenció per a despeses de personal propi assignat directament al projecte subvencionat."]
["6. En el cas de lloguers d’immobles les despeses de lloguer s’imputaran a les despeses indirectes amb el límit establert per aquestes."]
["7. Per a les subvencions atorgades per import igual o superior a 20.000 € és obligatori un informe d'auditoria per a la justificació. L'import d'aquest informe es considera despesa subvencionable, amb un límit màxim de 1.500€."]
["8. Són imputables en aquesta modalitat les despeses indirectes, detallades en l’apartat 13.3. de les bases reguladores; amb un màxim del 10% de l'import de la subvenció.\n"]
["9. No s’admetrà cap proposta en aquesta modalitat que no presenti l’acord d’intercooperació per persones jurídiques pel projecte presentat per rebre subvenció."]
["10. Quan s'hagi de fer despeses de més de 12.000 €, sense IVA, en el cas de prestacions de serveis o lliurament de béns, s'hauran d'incorporar tres pressupostos sol·licitats i argumentar el motiu de l'adjudicació en el cas de no ser la proposta més avantatjosa econòmicament."]
["11. Els projectes d'aquesta modalitat hauran de lliurar a la seva finalització un producte comunicatiu, d'acord amb el contingut establert a la convocatòria de la subvenció."]
["12. No seran elegibles factures d'empreses emeses entre les organitzacions participants de l'acord d'intercooperació"]
["13. En cap cas es consideraran despeses subvencionables:\n> Els impostos indirectes quan siguin susceptibles de recuperació o compensació.\n> Les despeses d'inversió, incloses les adquisicions de béns mobles.\n> Les despeses realitzades amb data anterior a l'inici del projecte i data posterior a la finalització del projecte.\n> Altres despeses que s'indiquin a la convocatòria."]
["14. La retribució de les persones contractades en el marc del projecte subvencionat no pot ser inferior al Salari Mínim Interprofessional (SMI), ni a l'estipulada al corresponent conveni o marc normatiu de referència (punt 7 de les bases 2024: requisits dels projectes). "]
["15. Els materials produïts de difusió, estudis, informes o materials didàctics utilitzats, etc. en el cas de tractar-se de despesa elegible de la subvenció, hauran de tenir llicència Creative Commons -Compartir Igual- (share a like) i no podrà tenir la condició –Sense Obres Derivades- (no derivate Works)."]
["16. Els projectes subvencionats han de fomentar activitats d'interès públic o social, les quals han de ser gratuïtes per a les persones participants o en cap cas el preu ha de suposar un obstacle per a la seva participació, buscant altres formes d'accés per a persones amb dificultats econòmiques. En el cas que hi hagi algun tipus de lucre, haurà de revertir en les pròpies activitats subvencionades."]
["17. L'Ajuntament de Barcelona i les seves entitats municipals en cap cas subvencionaran el mateix projecte, executat durant el mateix període, per cap altre procediment de concessió que no sigui el regulat per les bases reguladores."]
["18. El/la beneficiari/ària no podrà alterar en cap cas el destí de les subvencions concedides."]
["19. L'organització designada com a representant de l'agrupació serà plenament responsable del projecte davant l'Ajuntament respecte al compliment de les obligacions establertes en les bases reguladores, sense perjudici de la responsabilitat de les altres organitzacions sòcies de l'agrupació, tot sent-li d'aplicació els requisits previstos al punt 6.1 de les bases reguladores."]
["20. En cap cas podran formar part de l'agrupació les organitzacions que hagin rebut altres subvencions per a l'execució del mateix projecte d'altres administracions públiques."]

{"sheet":"Resum Pressupost","index":2,"n_rows":26,"n_cols":11,"rows_kept":26,"cut":false,"hidden":false,"merged":[[23,7,23,9],[5,9,6,9],[1,2,1,7],[3,0,3,8],[19,2,20,2],[19,3,20,3],[19,4,20,4],[5,0,6,1],[5,2,6,2],[5,3,6,3],[5,4,6,4],[5,6,6,7],[5,8,6,8],[18,6,18,7],[19,0,20,1]]}
[]
[null,null,"Resum pressupost Modalitat Bc"]
[]
["Subvencions de l'Ajuntament de Barcelona per l'enfortiment de l'Economia Social i Solidària i per la intercooperació en l'Estratègia #ESSBCN2030 - ENFORTIM L’ESS 2024",null,null,null,null,null,null,null,null,"MODALITAT Bc"]
[]
["Despeses directes \n(aquelles que s'identifiquen directament amb el projecte)",null,"Previsió inicial cost total","Previsió reformulada cost total","Import imputat a la subvenció atorgada",null,"Ingressos previstos",null,"Previsió inicial ingrés total","Previsió reformulada ingrés total"]
[]
["Bc","D1. Retribucions i seguretat social (règim general o socis/es cooperativistes en règim d’autònoms) del personal propi vinculat al projecte (màxim 25% subvenció)",{"$f":"+'Reformulació Pressupost Bc'!D21","v":0},{"$f":"+'Reformulació Pressupost Bc'!I21","v":0},{"$f":"+'Reformulació Pressupost Bc'!G21","v":0},{"$f":"+IF(D8<0,\"No s'admeten valors negatius\",\"\")","v":""},"A.","Subvenció municipal (import sol·licitat a la instància/atorgat)",{"$f":"'Reformulació Pressupost Bc'!B12","v":0},{"$f":"'Reformulació Pressupost Bc'!G12","v":0}]
[null,"D2. Treballs realitzats per professionals i empreses externes directament vinculades al projecte subvencionat",{"$f":"+'Reformulació Pressupost Bc'!D27","v":0},{"$f":"+'Reformulació Pressupost Bc'!I27","v":0},{"$f":"+'Reformulació Pressupost Bc'!G27","v":0},{"$f":"+IF(D9<0,\"No s'admeten valors negatius\",\"\")","v":""},"B.","Subvencions d'altres administracions",null,null,{"$f":"+IF(J9<0,\"No s'admeten valors negatius\",\"\")","v":""}]
[null,"D3. Adquisició de materials i béns consumibles íntegrament imputables al projecte ",{"$f":"+'Reformulació Pressupost Bc'!D31","v":0},{"$f":"+'Reformulació Pressupost Bc'!I31","v":0},{"$f":"+'Reformulació Pressupost Bc'!G31","v":0},null,"C.","Subvencions d'ens privats",null,null,""]
[null,"D4. Transport – missatgeria imputables al projecte ",{"$f":"+'Reformulació Pressupost Bc'!D35","v":0},{"$f":"+'Reformulació Pressupost Bc'!I35","v":0},{"$f":"+'Reformulació Pressupost Bc'!G35","v":0},{"$f":"+IF(D10<0,\"No s'admeten valors negatius\",\"\")","v":""},"D.","Recursos propis de l'organització aplicats al projecte"]
[null,"D5. Publicitat i propaganda de les activitats directament vinculades al projecte ",{"$f":"+'Reformulació Pressupost Bc'!D39","v":0},{"$f":"+'Reformulació Pressupost Bc'!I39","v":0},{"$f":"+'Reformulació Pressupost Bc'!G39","v":0},null,"E.","Taquillatge"]
[null,"D6. Allotjament i dietes, del personal contractat i voluntari, vinculats al projecte",{"$f":"+'Reformulació Pressupost Bc'!D43","v":0},{"$f":"+'Reformulació Pressupost Bc'!I43","v":0},{"$f":"+'Reformulació Pressupost Bc'!G43","v":0},null,"F.","Quotes d'inscripció"]
[null,"D7. Ajuts al transport per als/les participants dels projectes en cas que sigui necessari de manera justificada",{"$f":"+'Reformulació Pressupost Bc'!D47","v":0},{"$f":"+'Reformulació Pressupost Bc'!I47","v":0},{"$f":"+'Reformulació Pressupost Bc'!G47","v":0},null,"G.","Venda de Productes"]
[null,"D8. Viatges i desplaçaments imputables a les activitats del projecte",{"$f":"+'Reformulació Pressupost Bc'!D51","v":0},{"$f":"+'Reformulació Pressupost Bc'!I51","v":0},{"$f":"+'Reformulació Pressupost Bc'!G51","v":0},null,"H","Publicitat i/o Esponsorització"]
[null,"D9. Tributs, quan siguin abonats directament per la persona jurídica o física beneficiària",{"$f":"+'Reformulació Pressupost Bc'!D55","v":0},{"$f":"+'Reformulació Pressupost Bc'!I55","v":0},{"$f":"+'Reformulació Pressupost Bc'!G55","v":0},null,"I.","Altres ingressos"]
[null,"D10. Despeses de l’informe d’auditoria (màx. 1.500€ subvenció)",{"$f":"+'Reformulació Pressupost Bc'!D59","v":0},{"$f":"+'Reformulació Pressupost Bc'!I59","v":0},{"$f":"+'Reformulació Pressupost Bc'!G59","v":0},null,null,"Total Ingressos",{"$f":"SUM(I8:I16)","v":0},{"$f":"SUM(J8:J16)","v":0}]
[null,"D11. Altres despeses que de manera justificada i per la tipologia del projecte puguin imputar-se directament al projecte",{"$f":"+'Reformulació Pressupost Bc'!D63","v":0},{"$f":"+'Reformulació Pressupost Bc'!I63","v":0},{"$f":"+'Reformulació Pressupost Bc'!G63","v":0}]
[null,"Total Despeses Directes   ",{"$f":"SUM(C8:C18)","v":0},{"$f":"SUM(D8:D18)","v":0},{"$f":"SUM(E8:E18)","v":0},null,"Ingressos menys despeses ",null,{"$f":"+I17-C26","v":0},{"$f":"+J17-D26","v":0}]
["Despeses indirectes (es podran assignar al projecte fent sevir un percentatge d’assignació) ",null,"Previsió inicial cost total","Previsió reformulada cost total","Import imputat a la subvenció atorgada"]
[null,null,null,null,null,null,null,null,"% subvencionat inicialment",{"$f":"I8/C26","v":{"$error":"#DIV/0!"}}]
[]
[null,null,null,null,null,null,null,null,"% subvencionat després de reformular",{"$f":"+J8/D26","v":{"$error":"#DIV/0!"}},"*"]
[null,null,null,null,null,null,null,"*Aquest percentatge ha de ser igual o menor al percentatge subvencionat inicialment."]
[null,"Total Despeses Indirectes   (Màx. 10% subv)",{"$f":"SUM(C22:C24)","v":0},{"$f":"SUM(D22:D24)","v":0},{"$f":"SUM(E22:E24)","v":0},{"$f":"+IF(D24<0,\"No s'admeten valors negatius\",\"\")","v":""}]
[null,"Total Despeses ",{"$f":"+C19+C25","v":0},{"$f":"+D19+D25","v":0},{"$f":"+E19+E25","v":0}]